Workbook

Sheet RD 2017 Q1 Total
B4: Realkredit Danmark 2017 Q1 - Total portfolio
B7: DKK million | C7: Private | E7: Rental Residential | G7: Commercial | I7: Agriculture | K7: Total DKKm/ number
B8: Mortgage loans
B9: - Bond debt outstanding | C9: 441683.1339 | E9: 157377.2425 | G9: 128117.0952 | I9: 48207.25891 | K9: 775384.7305
B10: - Number of loans | C10: 408993 | E10: 37099 | G10: 13505 | I10: 14001 | K10: 473598
B12: Bond debt outstanding by loan type
B13: Fixed-rate loans | C13: 161399.2247 | E13: 74584.68485 | G13: 16449.91281 | I13: 6901.037896 | K13: 259334.8603
B14: - repayment loans | C14: 121096.727 | E14: 69857.94121 | G14: 15333.38363 | I14: 4463.547404 | K14: 210751.5993
B15: - interest-only | C15: 40302.49771 | E15: 4726.743638 | G15: 1116.529181 | I15: 2437.490491 | K15: 48583.26102
B16: FlexLån® | C16: 243250.7334 | E16: 63057.23436 | G16: 41783.96096 | I16: 25533.41475 | K16: 373625.3435
B17: - repayment loans | C17: 95396.46827 | E17: 39721.30839 | G17: 22336.07107 | I17: 8311.159303 | K17: 165765.007
B18: - interest-only | C18: 147854.2652 | E18: 23335.92597 | G18: 19447.88989 | I18: 17222.25545 | K18: 207860.3365
B19: FlexGaranti®, Rentedyk TM | C19: 16745.8297 | E19: 508.8581582 | G19: 288.9554495 | I19: 262.5833424 | K19: 17806.22665
B20: - repayment loans | C20: 12179.92515 | E20: 450.5454596 | G20: 273.6071938 | I20: 217.8827735 | K20: 13121.96057
B21: - interest-only | C21: 4565.904557 | E21: 58.31269866 | G21: 15.34825564 | I21: 44.70056894 | K21: 4684.26608
B22: FlexKort® | C22: 20163.55443 | E22: 2522.984638 | G22: 2712.725379 | I22: 8227.061678 | K22: 33626.32613
B23: - repayment loans | C23: 6045.802511 | E23: 1296.123699 | G23: 1405.996311 | I23: 2109.822321 | K23: 10857.74484
B24: - interest-only | C24: 14117.75192 | E24: 1226.860938 | G24: 1306.729068 | I24: 6117.239358 | K24: 22768.58129
B25: Other floating rate loans | C25: 123.791578 | E25: 16703.48048 | G25: 66881.54065 | I25: 7283.161239 | K25: 90991.97395
B26: - repayment loans | C26: 54.5949834 | E26: 4892.878529 | G26: 23521.79373 | I26: 1886.678319 | K26: 30355.94556
B27: - interest-only | C27: 69.1965946 | E27: 11810.60195 | G27: 43359.74692 | I27: 5396.482919 | K27: 60636.02839
B28: Total | C28: 441683.1339 | E28: 157377.2425 | G28: 128117.0952 | I28: 48207.25891 | K28: 775384.7305
B30: Bond debt outstanding by geographic area
B31: - Metropolitan area | C31: 189827.9522 | E31: 58640.75862 | G31: 48935.8089 | I31: 3530.311941 | K31: 300934.8317
B32: - Other Sealand | C32: 86117.97983 | E32: 17212.84713 | G32: 10787.89984 | I32: 13510.76457 | K32: 127629.4914
B33: - Region South Denmark | C33: 70647.07797 | E33: 28431.17442 | G33: 25376.31525 | I33: 16243.75343 | K33: 140698.3211
B34: - Region Central Jutland | C34: 72157.8816 | E34: 36842.71009 | G34: 19515.54475 | I34: 8938.317792 | K34: 137454.4542
B35: - Region North Jutland | C35: 22931.41868 | E35: 13228.31841 | G35: 5999.543831 | I35: 5984.111174 | K35: 48143.39209
B36: - Other area | C36: 0.82359477 | E36: 3021.433822 | G36: 17501.98268 | I36: 0 | K36: 20524.2401
B37: Total | C37: 441683.1339 | E37: 157377.2425 | G37: 128117.0952 | I37: 48207.25891 | K37: 775384.7305
B39: Bond debt outstanding by size, DKKm
B40: 0 - 2 | C40: 253219.2107 | E40: 8690.787596 | G40: 3572.379091 | I40: 3312.274926 | K40: 268794.6523
B41: 2 - 5 | C41: 160029.2911 | E41: 12124.71092 | G41: 5608.637054 | I41: 6521.093081 | K41: 184283.7321
B42: 5 - 20 | C42: 27523.70574 | E42: 44811.00573 | G42: 20430.15961 | I42: 15532.33683 | K42: 108297.2079
B43: 20 - 50 | C43: 854.1316783 | E43: 36961.62621 | G43: 18409.968 | I43: 14596.57967 | K43: 70822.30555
B44: 50 - 100 | C44: 56.79469515 | E44: 21848.91566 | G44: 16438.05562 | I44: 6525.160751 | K44: 44868.92673
B45: 100 and above | C45: 0 | E45: 32940.19637 | G45: 63657.89588 | I45: 1719.813645 | K45: 98317.9059
B46: Total | C46: 441683.1339 | E46: 157377.2425 | G46: 128117.0952 | I46: 48207.25891 | K46: 775384.7305
B48: Bond debt outstanding by seasoning
B49: ≤ 12 months | C49: 22629.67924 | E49: 6358.646509 | G49: 7315.523771 | I49: 863.1706216 | K49: 37167.02014
B50: > 12 - ≤ 24 months | C50: 21112.07004 | E50: 6549.707657 | G50: 8788.777775 | I50: 1652.632944 | K50: 38103.18841
B51: > 24 - ≤ 36 months | C51: 22314.91455 | E51: 6710.305172 | G51: 5442.123749 | I51: 1282.84488 | K51: 35750.18835
B52: > 36 - ≤ 60 months | C52: 44576.8009 | E52: 12265.99604 | G52: 16215.29704 | I52: 2272.988816 | K52: 75331.08279
B53: > 60 months | C53: 331049.6692 | E53: 125492.5871 | G53: 90355.37292 | I53: 42135.62164 | K53: 589033.2508
B54: Total | C54: 441683.1339 | E54: 157377.2425 | G54: 128117.0952 | I54: 48207.25891 | K54: 775384.7305
B56: Bond debt outstanding by Loan To Value
B57: 0 - 20% | C57: 157088.8825 | E57: 64857.35426 | G57: 51956.95743 | I57: 18470.69236 | K57: 292373.8865
B58: 20 - 40% | C58: 133966.799 | E58: 42581.41809 | G58: 42702.80917 | I58: 15585.27177 | K58: 234836.298
B59: 40 - 60% | C59: 94886.08973 | E59: 26908.93427 | G59: 25401.0024 | I59: 10171.32459 | K59: 157367.351
B60: 60 - 80% | C60: 44766.72928 | E60: 13114.13335 | G60: 5370.838591 | I60: 3148.607885 | K60: 66400.30911
B61: > 80 % | C61: 10974.63339 | E61: 9915.402507 | G61: 2685.487659 | I61: 831.3622989 | K61: 24406.88586
B62: Total | C62: 441683.1339 | E62: 157377.2425 | G62: 128117.0952 | I62: 48207.25891 | K62: 775384.7305

Sheet RD 2017 Q1 Cap T
B4: Realkredit Danmark 2017 Q1 - Capital center T
B7: DKK million | C7: Private | E7: Rental Residential | G7: Commercial | I7: Agriculture | K7: Total DKKm/ number
B8: Mortgage loans
B9: - Bond debt outstanding | C9: 261476.9474 | E9: 77423.95882 | G9: 100226.1183 | I9: 39185.71576 | K9: 478312.7403
B10: - Number of loans | C10: 225648 | E10: 17030 | G10: 8867 | I10: 10653 | K10: 262198
B12: Bond debt outstanding by loan type
B13: Fixed-rate loans | C13: 29.11995994 | E13: 0 | G13: 307.0248307 | I13: 47.72420791 | K13: 383.8689986
B14: - repayment loans | C14: 9.79491977 | E14: 0 | G14: 307.0248307 | I14: 20.30165738 | K14: 337.1214079
B15: - interest-only | C15: 19.32504017 | E15: 0 | G15: 0 | I15: 27.42255053 | K15: 46.7475907
B16: FlexLån® | C16: 241201.2924 | E16: 60788.08942 | G16: 40066.78599 | I16: 25345.85092 | K16: 367402.0188
B17: - repayment loans | C17: 94837.01338 | E17: 39354.94825 | G17: 21985.64852 | I17: 8258.275274 | K17: 164435.8854
B18: - interest-only | C18: 146364.2791 | E18: 21433.14116 | G18: 18081.13747 | I18: 17087.57565 | K18: 202966.1334
B19: FlexGaranti®, Rentedyk TM | C19: 0 | E19: 0 | G19: 0 | I19: 0 | K19: 0
B20: - repayment loans | C20: 0 | E20: 0 | G20: 0 | I20: 0 | K20: 0
B21: - interest-only | C21: 0 | E21: 0 | G21: 0 | I21: 0 | K21: 0
B22: FlexKort® | C22: 20163.55443 | E22: 2522.984638 | G22: 2712.725379 | I22: 8227.061678 | K22: 33626.32613
B23: - repayment loans | C23: 6045.802511 | E23: 1296.123699 | G23: 1405.996311 | I23: 2109.822321 | K23: 10857.74484
B24: - interest-only | C24: 14117.75192 | E24: 1226.860938 | G24: 1306.729068 | I24: 6117.239358 | K24: 22768.58129
B25: Other floating rate loans | C25: 82.98056802 | E25: 14112.88476 | G25: 57139.58212 | I25: 5565.078947 | K25: 76900.5264
B26: - repayment loans | C26: 46.38955533 | E26: 4603.395207 | G26: 20807.65485 | I26: 1618.998631 | K26: 27076.43825
B27: - interest-only | C27: 36.59101269 | E27: 9509.489556 | G27: 36331.92727 | I27: 3946.080315 | K27: 49824.08815
B28: Total | C28: 261476.9474 | E28: 77423.95882 | G28: 100226.1183 | I28: 39185.71576 | K28: 478312.7403
B30: Bond debt outstanding by geographic area
B31: - Metropolitan area | C31: 118423.8412 | E31: 26228.18913 | G31: 38540.30865 | I31: 2890.973021 | K31: 186083.312
B32: - Other Sealand | C32: 49858.22879 | E32: 7833.374733 | G32: 7253.233296 | I32: 11533.26754 | K32: 76478.10435
B33: - Region South Denmark | C33: 37876.69494 | E33: 14615.15736 | G33: 19548.86752 | I33: 12291.90026 | K33: 84332.62007
B34: - Region Central Jutland | C34: 42647.63786 | E34: 18758.07071 | G34: 13882.22859 | I34: 7486.908378 | K34: 82774.84554
B35: - Region North Jutland | C35: 12670.54462 | E35: 7423.854068 | G35: 3826.306705 | I35: 4982.666565 | K35: 28903.37195
B36: - Other area | C36: 0 | E36: 2565.312817 | G36: 17175.17356 | I36: 0 | K36: 19740.48638
B37: Total | C37: 261476.9474 | E37: 77423.95882 | G37: 100226.1183 | I37: 39185.71576 | K37: 478312.7403
B39: Bond debt outstanding by size, DKKm
B40: 0 - 2 | C40: 136485.2195 | E40: 5427.228814 | G40: 2071.465136 | I40: 2129.4465 | K40: 146113.3599
B41: 2 - 5 | C41: 104080.789 | E41: 6273.491148 | G41: 3793.082975 | I41: 5049.313508 | K41: 119196.6766
B42: 5 - 20 | C42: 20243.07434 | E42: 20504.36036 | G42: 14522.85291 | I42: 12967.78184 | K42: 68238.06944
B43: 20 - 50 | C43: 611.0698916 | E43: 16574.61914 | G43: 13517.07376 | I43: 12076.86411 | K43: 42779.6269
B44: 50 - 100 | C44: 56.79469515 | E44: 11624.14554 | G44: 10886.4481 | I44: 5387.816011 | K44: 27955.20434
B45: 100 and above | C45: 0 | E45: 17020.11382 | G45: 55435.19544 | I45: 1574.493793 | K45: 74029.80305
B46: Total | C46: 261476.9474 | E46: 77423.95882 | G46: 100226.1183 | I46: 39185.71576 | K46: 478312.7403
B48: Bond debt outstanding by seasoning
B49: ≤ 12 months | C49: 12043.38676 | E49: 3231.508735 | G49: 5025.700607 | I49: 649.0454774 | K49: 20949.64158
B50: > 12 - ≤ 24 months | C50: 11894.61277 | E50: 3956.250685 | G50: 7466.870626 | I50: 1242.299293 | K50: 24560.03337
B51: > 24 - ≤ 36 months | C51: 11032.88292 | E51: 4496.079016 | G51: 4302.699385 | I51: 1032.827314 | K51: 20864.48864
B52: > 36 - ≤ 60 months | C52: 23298.11546 | E52: 8937.582268 | G52: 14610.48488 | I52: 1734.1015 | K52: 48580.28412
B53: > 60 months | C53: 203207.9495 | E53: 56802.53811 | G53: 68820.36282 | I53: 34527.44217 | K53: 363358.2926
B54: Total | C54: 261476.9474 | E54: 77423.95882 | G54: 100226.1183 | I54: 39185.71576 | K54: 478312.7403
B56: Bond debt outstanding by Loan To Value
B57: 0 - 20% | C57: 91883.31169 | E57: 28446.76698 | G57: 42304.42555 | I57: 15041.9622 | K57: 177676.4664
B58: 20 - 40% | C58: 78899.98007 | E58: 22391.78153 | G58: 33962.0339 | I58: 12637.83745 | K58: 147891.6329
B59: 40 - 60% | C59: 56723.66067 | E59: 15512.89013 | G59: 19123.68746 | I59: 8204.278685 | K59: 99564.51694
B60: 60 - 80% | C60: 26934.00593 | E60: 7146.703645 | G60: 3466.982177 | I60: 2606.329422 | K60: 40154.02117
B61: > 80 % | C61: 7035.989055 | E61: 3925.816526 | G61: 1368.989241 | I61: 695.3080041 | K61: 13026.10283
B62: Total | C62: 261476.9474 | E62: 77423.95882 | G62: 100226.1183 | I62: 39185.71576 | K62: 478312.7403

Sheet RD 2017 Q1 Cap S
B4: Realkredit Danmark 2017 Q1 - Capital center S
B7: DKK million | C7: Private | E7: Rental Residential | G7: Commercial | I7: Agriculture | K7: Total DKKm/ number
B8: Mortgage loans
B9: - Bond debt outstanding | C9: 161682.4947 | E9: 50122.09132 | G9: 20763.63311 | I9: 8213.084961 | K9: 240781.3041
B10: - Number of loans | C10: 145252 | E10: 9278 | G10: 3027 | I10: 2497 | K10: 160054
B12: Bond debt outstanding by loan type
B13: Fixed-rate loans | C13: 154799.9442 | E13: 46537.23736 | G13: 15581.58869 | I13: 6570.639786 | K13: 223489.41
B14: - repayment loans | C14: 114715.6353 | E14: 41820.41186 | G14: 14467.94144 | I14: 4161.177868 | K14: 175165.1664
B15: - interest-only | C15: 40084.30892 | E15: 4716.825507 | G15: 1113.647251 | I15: 2409.461918 | K15: 48324.2436
B16: FlexLån® | C16: 2049.440986 | E16: 2269.144944 | G16: 1717.17497 | I16: 175.4101077 | K16: 6211.171008
B17: - repayment loans | C17: 559.4548955 | E17: 366.3601324 | G17: 350.4225513 | I17: 40.73030975 | K17: 1316.967889
B18: - interest-only | C18: 1489.986091 | E18: 1902.784811 | G18: 1366.752419 | I18: 134.679798 | K18: 4894.203119
B19: FlexGaranti®, Rentedyk TM | C19: 4813.123624 | E19: 99.9009841 | G19: 46.36487883 | I19: 25.29564432 | K19: 4984.685131
B20: - repayment loans | C20: 1904.000508 | E20: 62.51906623 | G20: 39.5913221 | I20: 15.73826616 | K20: 2021.849163
B21: - interest-only | C21: 2909.123116 | E21: 37.38191787 | G21: 6.77355673 | I21: 9.55737816 | K21: 2962.835969
B22: FlexKort® | C22: 0 | E22: 0 | G22: 0 | I22: 0 | K22: 0
B23: - repayment loans | C23: 0 | E23: 0 | G23: 0 | I23: 0 | K23: 0
B24: - interest-only | C24: 0 | E24: 0 | G24: 0 | I24: 0 | K24: 0
B25: Other floating rate loans | C25: 19.9859311 | E25: 1215.808032 | G25: 3418.504565 | I25: 1441.739423 | K25: 6096.037952
B26: - repayment loans | C26: 6.27765929 | E26: 154.5507372 | G26: 960.5150872 | I26: 189.2190187 | K26: 1310.562502
B27: - interest-only | C27: 13.70827181 | E27: 1061.257295 | G27: 2457.989478 | I27: 1252.520405 | K27: 4785.475449
B28: Total | C28: 161682.4947 | E28: 50122.09132 | G28: 20763.63311 | I28: 8213.084961 | K28: 240781.3041
B30: Bond debt outstanding by geographic area
B31: - Metropolitan area | C31: 66604.16118 | E31: 22991.11 | G31: 8139.708835 | I31: 597.1026914 | K31: 98332.08271
B32: - Other Sealand | C32: 30911.05517 | E32: 4963.984622 | G32: 2870.739184 | I32: 1784.317597 | K32: 40530.09657
B33: - Region South Denmark | C33: 28831.33546 | E33: 8175.54842 | G33: 3898.671636 | I33: 3637.247416 | K33: 44542.80293
B34: - Region Central Jutland | C34: 26384.44655 | E34: 10839.57196 | G34: 3966.836279 | I34: 1275.062484 | K34: 42465.91727
B35: - Region North Jutland | C35: 8951.496373 | E35: 2900.208397 | G35: 1853.191877 | I35: 919.3547722 | K35: 14624.25142
B36: - Other area | C36: 0 | E36: 251.6679301 | G36: 34.48529817 | I36: 0 | K36: 286.1532282
B37: Total | C37: 161682.4947 | E37: 50122.09132 | G37: 20763.63311 | I37: 8213.084961 | K37: 240781.3041
B39: Bond debt outstanding by size, DKKm
B40: 0 - 2 | C40: 100674.3606 | E40: 2098.722371 | G40: 1040.039785 | I40: 913.8435832 | K40: 104726.9663
B41: 2 - 5 | C41: 53616.07491 | E41: 4013.34112 | G41: 1641.480659 | I41: 1301.012454 | K41: 60571.90914
B42: 5 - 20 | C42: 7148.997459 | E42: 15156.26366 | G42: 5134.312903 | I42: 2354.560021 | K42: 29794.13404
B43: 20 - 50 | C43: 243.0617867 | E43: 11009.15765 | G43: 4314.102486 | I43: 2381.839208 | K43: 17948.16113
B44: 50 - 100 | C44: 0 | E44: 6581.463675 | G44: 4052.817402 | I44: 1117.299154 | K44: 11751.58023
B45: 100 and above | C45: 0 | E45: 11263.14285 | G45: 4580.879873 | I45: 144.5305408 | K45: 15988.55326
B46: Total | C46: 161682.4947 | E46: 50122.09132 | G46: 20763.63311 | I46: 8213.084961 | K46: 240781.3041
B48: Bond debt outstanding by seasoning
B49: ≤ 12 months | C49: 10545.40667 | E49: 3093.028615 | G49: 1843.712977 | I49: 213.5824561 | K49: 15695.73072
B50: > 12 - ≤ 24 months | C50: 9183.765835 | E50: 2538.70163 | G50: 1069.831341 | I50: 406.3180939 | K50: 13198.6169
B51: > 24 - ≤ 36 months | C51: 11247.57148 | E51: 2135.459658 | G51: 1117.379045 | I51: 242.6853012 | K51: 14743.09548
B52: > 36 - ≤ 60 months | C52: 20985.76089 | E52: 3115.451874 | G52: 1254.440489 | I52: 517.8353027 | K52: 25873.48855
B53: > 60 months | C53: 109719.9899 | E53: 39239.44955 | G53: 15478.26926 | I53: 6832.663807 | K53: 171270.3725
B54: Total | C54: 161682.4947 | E54: 50122.09132 | G54: 20763.63311 | I54: 8213.084961 | K54: 240781.3041
B56: Bond debt outstanding by Loan To Value
B57: 0 - 20% | C57: 56664.28151 | E57: 23543.78297 | G57: 7515.290688 | I57: 2932.946465 | K57: 90656.30163
B58: 20 - 40% | C58: 49812.72482 | E58: 12672.42263 | G58: 6914.893972 | I58: 2742.348036 | K58: 72142.38946
B59: 40 - 60% | C59: 35311.74777 | E59: 6924.884105 | G59: 4564.195693 | I59: 1900.156249 | K59: 48700.98382
B60: 60 - 80% | C60: 16616.82972 | E60: 3309.933556 | G60: 1161.536763 | I60: 513.7003635 | K60: 21602.0004
B61: > 80 % | C61: 3276.91091 | E61: 3671.06806 | G61: 607.7159916 | I61: 123.9338474 | K61: 7679.628809
B62: Total | C62: 161682.4947 | E62: 50122.09132 | G62: 20763.63311 | I62: 8213.084961 | K62: 240781.3041

Sheet Repossed Properties - Year
B5: End year | C5: Stock | D5: Repossed in year
B6: 1986 | C6: 471 | D6: 933
B7: 1987 | C7: 630 | D7: 1238
B8: 1988 | C8: 1562 | D8: 2797
B9: 1989 | C9: 2654 | D9: 4209
B10: 1990 | C10: 3201 | D10: 4213
B11: 1991 | C11: 2463 | D11: 3950
B12: 1992 | C12: 2331 | D12: 3441
B13: 1993 | C13: 1720 | D13: 3264
B14: 1994 | C14: 732 | D14: 1479
B15: 1995 | C15: 215 | D15: 572
B16: 1996 | C16: 97 | D16: 265
B17: 1997 | C17: 32 | D17: 198
B18: 1998 | C18: 24 | D18: 107
B19: 1999 | C19: 15 | D19: 87
B20: 2000 | C20: 28 | D20: 109
B21: 2001 | C21: 54 | D21: 117
B22: 2002 | C22: 51 | D22: 169
B23: 2003 | C23: 51 | D23: 158
B24: 2004 | C24: 26 | D24: 101
B25: 2005 | C25: 13 | D25: 47
B26: 2006 | C26: 1 | D26: 16
B27: 2007 | C27: 4 | D27: 6
B28: 2008 | C28: 23 | D28: 46
B29: 2009 | C29: 37 | D29: 58
B30: 2010 | C30: 164 | D30: 235
B31: 2011 | C31: 161 | D31: 217
B32: 2012 | C32: 156 | D32: 198
B33: 2013 | C33: 122 | D33: 164
B34: 2014 | C34: 70 | D34: 108
B35: 2015 | C35: 58 | D35: 78
B36: 2016 | C36: 51 | D36: 81
B37: 2017* | C37: 50 | D37: 16
B39: *2017Q1

Sheet Repossed Properties - Quarter
B4: Quarter | C4: Homeowner Segment | D4: Corporate Segments | E4: Total
B5: 2002 Q4 | C5: 45 | D5: 6 | E5: =C5+D5 -> 51
B6: 2003 Q1 | C6: 48 | D6: 7 | E6: =C6+D6 -> 55
B7: 2003 Q2 | C7: 59 | D7: 5 | E7: 64
B8: 2003 Q3 | C8: 64 | D8: 5 | E8: 69
B9: 2003 Q4 | C9: 46 | D9: 5 | E9: 51
B10: 2004 Q1 | C10: 49 | D10: 5 | E10: 54
B11: 2004 Q2 | C11: 41 | D11: 5 | E11: 46
B12: 2004 Q3 | C12: 26 | D12: 3 | E12: 29
B13: 2004 Q4 | C13: 24 | D13: 2 | E13: 26
B14: 2005 Q1 | C14: 20 | D14: 3 | E14: 23
B15: 2005 Q2 | C15: 15 | D15: 3 | E15: 18
B16: 2005 Q3 | C16: 10 | D16: 3 | E16: 13
B17: 2005 Q4 | C17: 10 | D17: 3 | E17: 13
B18: 2006 Q1 | C18: 6 | D18: 1 | E18: 7
B19: 2006 Q2 | C19: 5 | D19: 0 | E19: 5
B20: 2006 Q3 | C20: 0 | D20: 0 | E20: 0
B21: 2006 Q4 | C21: 1 | D21: 0 | E21: 1
B22: 2007 Q1 | C22: 0 | D22: 0 | E22: 0
B23: 2007 Q2 | C23: 0 | D23: 0 | E23: 0
B24: 2007 Q3 | C24: 1 | D24: 0 | E24: 1
B25: 2007 Q4 | C25: 4 | D25: 0 | E25: 4
B26: 2008 Q1 | C26: 4 | D26: 0 | E26: 4
B27: 2008 Q2 | C27: 8 | D27: 0 | E27: 8
B28: 2008 Q3 | C28: 12 | D28: 1 | E28: 13
B29: 2008 Q4 | C29: 20 | D29: 3 | E29: 23
B30: 2009 Q1 | C30: 26 | D30: 1 | E30: 27
B31: 2009 Q2 | C31: 27 | D31: 1 | E31: 28
B32: 2009 Q3 | C32: 24 | D32: 2 | E32: 26
B33: 2009 Q4 | C33: 30 | D33: 7 | E33: 37
B34: 2010 Q1 | C34: 61 | D34: 20 | E34: 81
B35: 2010 Q2 | C35: 87 | D35: 27 | E35: 114
B36: 2010 Q3 | C36: 113 | D36: 32 | E36: 145
B37: 2010 Q4 | C37: 133 | D37: 31 | E37: 164
B38: 2011 Q1 | C38: 140 | D38: 39 | E38: =C38+D38 -> 179
B39: 2011 Q2 | C39: 130 | D39: 34 | E39: =C39+D39 -> 164
B40: 2011 Q3 | C40: 116 | D40: 37 | E40: 153
B41: 2011 Q4 | C41: 118 | D41: 43 | E41: 161
B42: 2012 Q1 | C42: 118 | D42: 48 | E42: 166
B43: 2012 Q2 | C43: 135 | D43: 51 | E43: 186
B44: 2012 Q3 | C44: 115 | D44: 42 | E44: 157
B45: 2012 Q4 | C45: 109 | D45: 47 | E45: 156
B46: 2013 Q1 | C46: 109 | D46: 40 | E46: 149
B47: 2013 Q2 | C47: 109 | D47: 29 | E47: 138
B48: 2013 Q3 | C48: 96 | D48: 32 | E48: 128
B49: 2013 Q4 | C49: 96 | D49: 26 | E49: 122
B50: 2014 Q1 | C50: 91 | D50: 16 | E50: 107
B51: 2014 Q2 | C51: 72 | D51: 19 | E51: 91
B52: 2014 Q3 | C52: 57 | D52: 14 | E52: 71
B53: 2014 Q4 | C53: 56 | D53: 14 | E53: =C53+D53 -> 70
B54: 2015 Q1 | C54: 53 | D54: 14 | E54: 67
B55: 2015 Q2 | C55: 55 | D55: 12 | E55: =C55+D55 -> 67
B56: 2015 Q3 | C56: 56 | D56: 13 | E56: =C56+D56 -> 69
B57: 2015 Q4 | C57: 45 | D57: 13 | E57: 58
B58: 2016 Q1 | C58: 47 | D58: 10 | E58: 57
B59: 2016 Q2 | C59: 44 | D59: 12 | E59: =C59+D59 -> 56
B60: 2016 Q3 | C60: 41 | D60: 15 | E60: =C60+D60 -> 56
B61: 2016 Q4 | C61: 38 | D61: 13 | E61: =C61+D61 -> 51
B62: 2017 Q1 | C62: 41 | D62: 9 | E62: =C62+D62 -> 50

Sheet LTV
B5: Loan to value % | C5: 2005 Q2 | D5: 2005 Q3 | E5: 2005 Q4 | F5: 2006 Q1 | G5: 2006 Q2 | H5: 2006 Q3 | I5: 2006 Q4 | J5: 2007 Q1 | K5: 2007 Q2 | L5: 2007 Q3 | M5: 2007 Q4 | N5: 2008 Q1 | O5: 2008 Q2 | P5: 2008 Q3 | Q5: 2008 Q4 | R5: 2009 Q1 | S5: 2009 Q2 | T5: 2009 Q3 | U5: 2009 Q4 | V5: 2010 Q1 | W5: 2010 Q2 | X5: 2010 Q3 | Y5: 2010 Q4 | Z5: 2011 Q1 | AA5: 2011 Q2 | AB5: 2011 Q3 | AC5: 2011 Q4 | AD5: 2012 Q1 | AE5: 2012 Q2 | AF5: 2012 Q3 | AG5: 2012 Q4 | AH5: 2013 Q1 | AI5: 2013 Q2 | AJ5: 2013 Q3 | AK5: 2013 Q4 | AL5: 2014 Q1 | AM5: 2014 Q2 | AN5: 2014 Q3 | AO5: 2014 Q4 | AP5: 2015 Q1 | AQ5: 2015 Q2 | AR5: 2015 Q3 | AS5: 2015 Q4 | AT5: 2016 Q1 | AU5: 2016 Q2 | AV5: 2016 Q3 | AW5: 2016 Q4 | AX5: 2017 Q1
B6: Private | C6: 64.97 | D6: 65.47 | E6: 62.75 | F6: 61.55 | G6: 59.06 | H6: 58.73 | I6: 56.28 | J6: 57.15 | K6: 56.02 | L6: 56.58 | M6: 57.84 | N6: 59.3 | O6: 57.14 | P6: 60.13 | Q6: 66.03 | R6: 67.57 | S6: 69.23 | T6: 71.96 | U6: 72.38 | V6: 70.58 | W6: 72.23 | X6: 70.98 | Y6: 70.6 | Z6: 68.52 | AA6: 70.45 | AB6: 72.83 | AC6: 76.21 | AD6: 75.96 | AE6: 73.59 | AF6: 72.1 | AG6: 72.99 | AH6: 74.52 | AI6: 72.7 | AJ6: 73.37 | AK6: 72.4 | AL6: 73.244 | AM6: 72.24 | AN6: 72.576 | AO6: 72.35 | AP6: 72.15 | AQ6: 69.24 | AR6: 67.185 | AS6: 66.164 | AT6: 67 | AU6: 66.48 | AV6: 65.735 | AW6: 64.723202 | AX6: 64.628
B7: Commercial | C7: 53.51 | D7: 54.3 | E7: 48.54 | F7: 50.65 | G7: 51.63 | H7: 49.59 | I7: 49 | J7: 49.02 | K7: 49.09 | L7: 45.89 | M7: 47.15 | N7: 48.46 | O7: 48.04 | P7: 54.46 | Q7: 54.78 | R7: 54.31 | S7: 59.27 | T7: 62.88 | U7: 65.5 | V7: 62.25 | W7: 61.09 | X7: 61.45 | Y7: 62.52 | Z7: 60.69 | AA7: 64.89 | AB7: 60.06 | AC7: 64.21 | AD7: 63.93 | AE7: 62.81 | AF7: 59.64 | AG7: 60.21 | AH7: 63.78 | AI7: 59.46 | AJ7: 59.81 | AK7: 59.4 | AL7: 58.201 | AM7: 59.31 | AN7: 59.878 | AO7: 60.38 | AP7: 60.5 | AQ7: 57.84 | AR7: 58.117 | AS7: 57.783 | AT7: 57.8 | AU7: 54.93 | AV7: 56.379 | AW7: 55.373231 | AX7: 54.387
B8: Agriculture | C8: 59.45 | D8: 58.76 | E8: 56.45 | F8: 56.1 | G8: 55.16 | H8: 53.87 | I8: 51.21 | J8: 52.33 | K8: 52.31 | L8: 51.76 | M8: 53.22 | N8: 52.13 | O8: 51.31 | P8: 54.91 | Q8: 49.92 | R8: 53.32 | S8: 57.56 | T8: 59.24 | U8: 61.03 | V8: 59.03 | W8: 60.92 | X8: 60.43 | Y8: 61.94 | Z8: 60.21 | AA8: 60.49 | AB8: 61.62 | AC8: 61.43 | AD8: 60.4 | AE8: 63.42 | AF8: 63.17 | AG8: 63.71 | AH8: 64 | AI8: 63.18 | AJ8: 63.14 | AK8: 64.2 | AL8: 59.476 | AM8: 60.07 | AN8: 59.557 | AO8: 59.78 | AP8: 58.63 | AQ8: 58.7 | AR8: 58.495 | AS8: 58.84 | AT8: 58.3 | AU8: 57.59 | AV8: 59.05 | AW8: 58.872926 | AX8: 59.094
B9: Rental residential | C9: 94 | D9: 96.46 | E9: 68.72 | F9: 62.18 | G9: 61.5 | H9: 62.66 | I9: 59.74 | J9: 60.99 | K9: 59.82 | L9: 56.41 | M9: 57.98 | N9: 58.79 | O9: 61.47 | P9: 63.05 | Q9: 66.13 | R9: 67.87 | S9: 71.83 | T9: 76.05 | U9: 76.02 | V9: 74.87 | W9: 76.51 | X9: 78.48 | Y9: 74.41 | Z9: 74.11 | AA9: 73.63 | AB9: 75.59 | AC9: 79.3 | AD9: 79.54 | AE9: 77.67 | AF9: 85.24 | AG9: 84.34 | AH9: 79.93 | AI9: 80.74 | AJ9: 77.16 | AK9: 78.4 | AL9: 75.966 | AM9: 78.18 | AN9: 76.644 | AO9: 78.35 | AP9: 75.76 | AQ9: 74.37 | AR9: 74.665 | AS9: 71.065 | AT9: 71.61 | AU9: 70.61 | AV9: 70.709 | AW9: 70.689117 | AX9: 68.769
B10: Total | C10: 69.26 | D10: 70.3 | E10: 62.09 | F10: 60.27 | G10: 58.53 | H10: 58.27 | I10: 55.91 | J10: 56.8 | K10: 55.83 | L10: 55.12 | M10: 56.33 | N10: 57.42 | O10: 56.42 | P10: 59.53 | Q10: 63.26 | R10: 64.64 | S10: 67.38 | T10: 70.44 | U10: 71.23 | V10: 69.34 | W10: 70.55 | X10: 70.19 | Y10: 69.47 | Z10: 67.8 | AA10: 69.49 | AB10: 70.61 | AC10: 73.93 | AD10: 73.72 | AE10: 71.99 | AF10: 72.04 | AG10: 72.47 | AH10: 73.12 | AI10: 71.73 | AJ10: 71.44 | AK10: 71.1 | AL10: 70.579 | AM10: 70.66 | AN10: 70.62 | AO10: 70.91 | AP10: 70.25 | AQ10: 67.87 | AR10: 66.759 | AS10: 65.433 | AT10: 65.87 | AU10: 65 | AV10: 64.956 | AW10: 64.22107 | AX10: 63.621

Sheet LTV - Sectors
B4: Realkredit Danmark 2017 Q1
B7: DKK billion | C7: Private | E7: Rental Residential | G7: Commercial | I7: Agriculture | K7: Weighted distribution | M7: Total DKKm/ number
B8: LTV by intervals, Total
B9: - 0-20% | C9: 157.0888825 | E9: 64.85735426 | G9: 51.95695743 | I9: 18.47069236 | K9: 0.3770694405 | M9: 292.3738865
B10: - 20-40% | C10: 133.966799 | E10: 42.58141809 | G10: 42.70280917 | I10: 15.58527177 | K10: 0.3028642283 | M10: 234.836298
B11: - 40-60% | C11: 94.88608973 | E11: 26.90893427 | G11: 25.4010024 | I11: 10.17132459 | K11: 0.2029538948 | M11: 157.367351
B12: - 60-80% | C12: 44.76672928 | E12: 13.11413335 | G12: 5.370838591 | I12: 3.148607885 | K12: 0.08563530657 | M12: 66.40030911
B13: - >80% | C13: 10.97463339 | E13: 9.915402507 | G13: 2.685487659 | I13: 0.8313622989 | K13: 0.03147712987 | M13: 24.40688586
B14: Total | C14: 441.6831339 | E14: 157.3772425 | G14: 128.1170952 | I14: 48.20725891 | K14: 1 | M14: 775.3847305
B16: LTV by intervals, Capital center T
B17: - 0-20% | C17: 91.88331169 | E17: 28.44676698 | G17: 42.30442555 | I17: 15.0419622 | K17: 0.3714650509 | M17: 177.6764664
B18: - 20-40% | C18: 78.89998007 | E18: 22.39178153 | G18: 33.9620339 | I18: 12.63783745 | K18: 0.3091944255 | M18: 147.8916329
B19: - 40-60% | C19: 56.72366067 | E19: 15.51289013 | G19: 19.12368746 | I19: 8.204278685 | K19: 0.2081577774 | M19: 99.56451694
B20: - 60-80% | C20: 26.93400593 | E20: 7.146703645 | G20: 3.466982177 | I20: 2.606329422 | K20: 0.08394930302 | M20: 40.15402117
B21: - >80% | C21: 7.035989055 | E21: 3.925816526 | G21: 1.368989241 | I21: 0.6953080041 | K21: 0.02723344316 | M21: 13.02610283
B22: Total | C22: 261.4769474 | E22: 77.42395882 | G22: 100.2261183 | I22: 39.18571576 | K22: 1 | M22: 478.3127403
B24: LTV by intervals, Capital center S
B25: - 0-20% | C25: 56.66428151 | E25: 23.54378297 | G25: 7.515290688 | I25: 2.932946465 | K25: 0.3765088903 | M25: 90.65630163
B26: - 20-40% | C26: 49.81272482 | E26: 12.67242263 | G26: 6.914893972 | I26: 2.742348036 | K26: 0.2996179032 | M26: 72.14238946
B27: - 40-60% | C27: 35.31174777 | E27: 6.924884105 | G27: 4.564195693 | I27: 1.900156249 | K27: 0.2022623143 | M27: 48.70098382
B28: - 60-80% | C28: 16.61682972 | E28: 3.309933556 | G28: 1.161536763 | I28: 0.5137003635 | K28: 0.08971626963 | M28: 21.6020004
B29: - >80% | C29: 3.27691091 | E29: 3.67106806 | G29: 0.6077159916 | I29: 0.1239338474 | K29: 0.03189462254 | M29: 7.679628809
B30: Total | C30: 161.6824947 | E30: 50.12209132 | G30: 20.76363311 | I30: 8.213084961 | K30: 1 | M30: 240.7813041

Sheet LTV - Classification
B4: Realkredit Danmark 2017 Q1
B7: DKK billion | C7: Classification 1-3 | E7: Classification 4-7 | G7: Classification 8-11 | I7: Total DKKm/ number
B8: LTV by intervals, Total
B9: - 0-20% | C9: 71.11339856 | E9: 205.9458513 | G9: 15.31463673 | I9: 292.3738865
B10: - 20-40% | C10: 46.98633492 | E10: 173.4536427 | G10: 14.39632037 | I10: 234.836298
B11: - 40-60% | C11: 26.91337279 | E11: 118.4828302 | G11: 11.97114803 | I11: 157.367351
B12: - 60-80% | C12: 11.00560253 | E12: 48.52414498 | G12: 6.870561599 | I12: 66.40030911
B13: - >80% | C13: 6.059385717 | E13: 13.91283074 | G13: 4.434669404 | I13: 24.40688586
B14: Total | C14: 162.0780945 | E14: 560.3192999 | G14: 52.98733614 | I14: 775.3847305
B16: LTV by intervals, Capital center T
B17: - 0-20% | C17: 38.07378685 | E17: 128.148926 | G17: 11.45375359 | I17: 177.6764664
B18: - 20-40% | C18: 25.71658862 | E18: 111.3112455 | G18: 10.8637988 | I18: 147.8916329
B19: - 40-60% | C19: 14.86917256 | E19: 75.70347696 | G19: 8.991867418 | I19: 99.56451694
B20: - 60-80% | C20: 5.803941803 | E20: 29.22979852 | G20: 5.120280849 | I20: 40.15402117
B21: - >80% | C21: 2.753390177 | E21: 7.14348119 | G21: 3.129231459 | I21: 13.02610283
B22: Total | C22: 87.21688002 | E22: 351.5369282 | G22: 39.55893212 | I22: 478.3127403
B24: LTV by intervals, Capital center S
B25: - 0-20% | C25: 22.1129682 | E25: 65.73520536 | G25: 2.80812807 | I25: 90.65630163
B26: - 20-40% | C26: 14.84183516 | E26: 54.55986377 | G26: 2.740690538 | I26: 72.14238946
B27: - 40-60% | C27: 8.386481469 | E27: 37.88259092 | G27: 2.431911431 | I27: 48.70098382
B28: - 60-80% | C28: 3.006185007 | E28: 17.19860424 | G28: 1.397211152 | I28: 21.6020004
B29: - >80% | C29: 1.27704486 | E29: 5.512759416 | G29: 0.8898245335 | I29: 7.679628809
B30: Total | C30: 49.62451469 | E30: 180.8890237 | G30: 10.26776572 | I30: 240.7813041

Sheet 3m arrears
B5: 3 month arrears | C5: 2007 Q4 | D5: 2008 Q1 | E5: 2008 Q2 | F5: 2008 Q3 | G5: 2008 Q4 | H5: 2009 Q1 | I5: 2009 Q2 | J5: 2009 Q3 | K5: 2009 Q4 | L5: 2010 Q1 | M5: 2010 Q2 | N5: 2010 Q3 | O5: 2010 Q4 | P5: 2011 Q1 | Q5: 2011 Q2 | R5: 2011 Q3 | S5: 2011 Q4 | T5: 2012 Q1 | U5: 2012 Q2 | V5: 2012 Q3 | W5: 2012 Q4 | X5: 2013 Q1 | Y5: 2013 Q2 | Z5: 2013 Q3 | AA5: 2013 Q4 | AB5: 2014 Q1 | AC5: 2014 Q2 | AD5: 2014 Q3 | AE5: 2014 Q4 | AF5: 2015 Q1 | AG5: 2015 Q2 | AH5: 2015 Q3 | AI5: 2015 Q4 | AJ5: 2016 Q1 | AK5: 2016 Q2 | AL5: 2016 Q3 | AM5: 2016 Q4 | AN5: 2017 Q1
B6: Private | C6: 0.1565621801 | D6: 0.1762209106 | E6: 0.2122632815 | F6: 0.2350437929 | G6: 0.3462165943 | H6: 0.485670813 | I6: 0.6376397853 | J6: 0.7091512059 | K6: 0.78891781 | L6: 0.8841831025 | M6: 0.6601477541 | N6: 0.5716004195 | O6: 0.5542256205 | P6: 0.495183886 | Q6: 0.491105528 | R6: 0.6619027318 | S6: 0.4648789078 | T6: 0.4683218185 | U6: 0.435485246 | V6: 0.4224469544 | W6: 0.4317850723 | X6: 0.4489009709 | Y6: 0.4252419032 | Z6: 0.3455616954 | AA6: 0.3948693296 | AB6: 0.3916592048 | AC6: 0.3808919296 | AD6: 0.3158925839 | AE6: 0.3040665106 | AF6: 0.3022090796 | AG6: 0.3133002496 | AH6: 0.2642695531 | AI6: 0.2814496397 | AJ6: 0.2625182988 | AK6: 0.2704818049 | AL6: 0.2709270155 | AM6: 0.2963558005 | AN6: 0.29
B7: Commercial | C7: 0.1475529518 | D7: 0.08656193528 | E7: 0.1302500765 | F7: 0.1997404357 | G7: 0.3183095539 | H7: 0.4503713369 | I7: 1.198597983 | J7: 1.56217329 | K7: 2.595274817 | L7: 1.523145417 | M7: 1.775975929 | N7: 1.689932768 | O7: 1.482263148 | P7: 1.017657856 | Q7: 1.69251601 | R7: 1.382236706 | S7: 1.285562141 | T7: 1.219810552 | U7: 1.069205032 | V7: 1.087315107 | W7: 1.274802193 | X7: 1.070478544 | Y7: 1.141462924 | Z7: 1.126271449 | AA7: 0.997631917 | AB7: 1.085571388 | AC7: 0.9180428434 | AD7: 0.8443116383 | AE7: 0.8999395249 | AF7: 1.331324178 | AG7: 1.7008585 | AH7: 0.9640949554 | AI7: 1.026937188 | AJ7: 1.099911371 | AK7: 0.9318099692 | AL7: 0.9243528617 | AM7: 1.209033992 | AN7: 0.97
B8: Agriculture | C8: 0.1649293972 | D8: 0.1635263606 | E8: 0.1813157883 | F8: 0.1858564423 | G8: 0.2915662116 | H8: 0.3337226369 | I8: 0.6566990574 | J8: 1.056262946 | K8: 1.025760354 | L8: 1.621928452 | M8: 1.361390125 | N8: 1.310212946 | O8: 0.9390511337 | P8: 1.179923048 | Q8: 1.619959709 | R8: 1.567372906 | S8: 1.376560935 | T8: 1.447876373 | U8: 1.600058875 | V8: 2.019019531 | W8: 1.700923428 | X8: 1.515212391 | Y8: 1.439310092 | Z8: 1.237981064 | AA8: 1.253401793 | AB8: 1.442260205 | AC8: 1.127939158 | AD8: 0.9218002511 | AE8: 1.1901638 | AF8: 0.9579440587 | AG8: 1.361415427 | AH8: 1.484350343 | AI8: 1.362668738 | AJ8: 1.75402139 | AK8: 2.035076396 | AL8: 2.025874775 | AM8: 1.458169528 | AN8: 1.38
B9: Rental Residential | C9: 0.1088165384 | D9: 0.07290029022 | E9: 0.2046401467 | F9: 0.1657144952 | G9: 0.6786648483 | H9: 0.7207648471 | I9: 2.441570712 | J9: 1.041556731 | K9: 3.151857985 | L9: 1.261376065 | M9: 1.911455498 | N9: 0.9980525219 | O9: 1.58386176 | P9: 0.8097837562 | Q9: 1.245213311 | R9: 0.5831540033 | S9: 0.8275803733 | T9: 1.094845259 | U9: 1.26894643 | V9: 1.10917231 | W9: 1.347955645 | X9: 1.285621484 | Y9: 1.406220466 | Z9: 1.215932657 | AA9: 1.056529063 | AB9: 1.455183706 | AC9: 0.6529841682 | AD9: 0.6994915535 | AE9: 0.6291229193 | AF9: 0.354367875 | AG9: 0.397458701 | AH9: 0.2329691789 | AI9: 0.4329770294 | AJ9: 0.1953111915 | AK9: 0.2318996211 | AL9: 0.1349230416 | AM9: 0.2069363115 | AN9: 0.14
B10: Total | C10: 0.1446306319 | D10: 0.1136053497 | E10: 0.1876877989 | F10: 0.1972826575 | G10: 0.4071896442 | H10: 0.5457481926 | I10: 1.186705754 | J10: 1.042703905 | K10: 1.780092757 | L10: 1.237627902 | M10: 1.281073625 | N10: 1.007130693 | O10: 1.05533416 | P10: 0.7936060102 | Q10: 1.064256468 | R10: 0.8335970997 | S10: 0.8345199572 | T10: 0.9537286482 | U10: 0.9007880996 | V10: 0.9399593444 | W10: 0.9775286142 | X10: 0.996800592 | Y10: 0.9381955032 | Z10: 0.9125938649 | AA10: 0.7854081252 | AB10: 1.05573143 | AC10: 0.6487367137 | AD10: 0.6180212089 | AE10: 0.6120806263 | AF10: 0.5828009738 | AG10: 0.7646311515 | AH10: 0.4818924982 | AI10: 0.5870626048 | AJ10: 0.5209872183 | AK10: 0.5729075866 | AL10: 0.4856469449 | AM10: 0.5837427941 | AN10: 0.46

Sheet Borrower segmentation Nordic (hidden)
E1: Værdier
C2: kapcenter | D2: sektor4 | E2: Sum af kormar | F2: Sum af kormar_non_Nordic
A3: =B3&"-"&D3 -> S-Boligudl | B3: =IF(C3="",B2,C3) -> S | C3: S | D3: Boligudl | E3: 5.012209132e+10 | F3: 4.987042339e+10
A4: =B4&"-"&D4 -> S-Erhverv | B4: =IF(C4="",B3,C4) -> S | D4: Erhverv | E4: 2.076363311e+10 | F4: 2.072914781e+10
A5: S-Landbrug | B5: S | D5: Landbrug | E5: 8213084961 | F5: 8213084961
A6: S-Privat | B6: S | D6: Privat | E6: 1.616824947e+11 | F6: 1.616824947e+11
A7: S Total- | B7: S Total | C7: S Total | E7: 2.407813041e+11 | F7: 2.404951509e+11
A8: T-Boligudl | B8: T | C8: T | D8: Boligudl | E8: 7.742395882e+10 | F8: 7.4858646e+10
A9: T-Erhverv | B9: T | D9: Erhverv | E9: 1.002261183e+11 | F9: 8.305094476e+10
A10: T-Landbrug | B10: T | D10: Landbrug | E10: 3.918571576e+10 | F10: 3.918571576e+10
A11: T-Privat | B11: T | D11: Privat | E11: 2.614769474e+11 | F11: 2.614769474e+11
A12: T Total- | B12: T Total | C12: T Total | E12: 4.783127403e+11 | F12: 4.585722539e+11
A13: Ø-Boligudl | B13: Ø | C13: Ø | D13: Boligudl | E13: 2.983119234e+10 | F13: 2.963026515e+10
A14: Ø-Erhverv | B14: Ø | D14: Erhverv | E14: 7127343824 | F14: 6835020000
A15: Ø-Landbrug | B15: Ø | D15: Landbrug | E15: 808458187.7 | F15: 808458187.7
A16: Ø-Privat | B16: Ø | D16: Privat | E16: 1.852369175e+10 | F16: 1.852369175e+10
A17: Ø Total- | B17: Ø Total | C17: Ø Total | E17: 5.629068611e+10 | F17: 5.579743509e+10
A18: Grand Total- | B18: Grand Total | C18: Grand Total | E18: 7.753847305e+11 | F18: 7.548648399e+11
E23: Kapcenter T
C24: =RIGHT($E$23,1)&"-"&D24 -> T-Privat | D24: Privat | E24: Private | F24: =VLOOKUP(C24,$A$3:$F$18,6,FALSE) -> 2.614769474e+11
C25: =RIGHT($E$23,1)&"-"&D25 -> T-Boligudl | D25: Boligudl | E25: Rental Residential | F25: =VLOOKUP(C25,$A$3:$F$18,6,FALSE) -> 7.4858646e+10
C26: T-Erhverv | D26: Erhverv | E26: Commercial | F26: 8.305094476e+10
C27: T-Landbrug | D27: Landbrug | E27: Agriculture | F27: 3.918571576e+10
C28: =RIGHT($E$23,1)&" "&D28 -> T Total- | D28: Total- | E28: Nordic | F28: =VLOOKUP(C28,$A$3:$F$18,5,FALSE)-SUM(F24:F27) -> 1.974048638e+10
E30: Kapcenter S
C31: =RIGHT($E$30,1)&"-"&D31 -> S-Privat | D31: Privat | E31: Private | F31: =VLOOKUP(C31,$A$3:$F$18,6,FALSE) -> 1.616824947e+11
C32: =RIGHT($E$30,1)&"-"&D32 -> S-Boligudl | D32: Boligudl | E32: Rental Residential | F32: =VLOOKUP(C32,$A$3:$F$18,6,FALSE) -> 4.987042339e+10
C33: S-Erhverv | D33: Erhverv | E33: Commercial | F33: 2.072914781e+10
C34: S-Landbrug | D34: Landbrug | E34: Agriculture | F34: 8213084961
C35: =RIGHT($E$30,1)&" "&D35 -> S Total- | D35: Total- | E35: Nordic | F35: =VLOOKUP(C35,$A$3:$F$18,5,FALSE)-SUM(F31:F34) -> 286153228.2
E37: Kapcenter Ø
C38: =RIGHT($E$37,1)&"-"&D38 -> Ø-Privat | D38: Privat | E38: Private | F38: =VLOOKUP(C38,$A$3:$F$18,6,FALSE) -> 1.852369175e+10
C39: =RIGHT($E$37,1)&"-"&D39 -> Ø-Boligudl | D39: Boligudl | E39: Rental Residential | F39: =VLOOKUP(C39,$A$3:$F$18,6,FALSE) -> 2.963026515e+10
C40: Ø-Erhverv | D40: Erhverv | E40: Commercial | F40: 6835020000
C41: Ø-Landbrug | D41: Landbrug | E41: Agriculture | F41: 808458187.7
C42: =RIGHT($E$37,1)&" "&D42 -> Ø Total- | D42: Total- | E42: Nordic | F42: =VLOOKUP(C42,$A$3:$F$18,5,FALSE)-SUM(F38:F41) -> 493251017.2
E44: Total
E45: Private | F45: =SUM(F24,F31,F38) -> 4.416831339e+11
E46: Rental Residential | F46: =SUM(F25,F32,F39) -> 1.543593345e+11
E47: Commercial | F47: 1.106151126e+11
E48: Agriculture | F48: 4.820725891e+10
E49: Nordic | F49: 2.051989062e+10

Sheet Borrower Exposure to Int. rate (hidden)
A2: Sum af kormar | C2: sektor2
A3: afdr_fri | B3: prodtyp2 | C3: Privat | D3: Erhverv
A4: J | B4: CapFloat | C4: 4565904557 | D4: 118361523.2
B5: F1 | C5: 2.444357785e+10 | D5: 9002236145
B6: F3 | C6: 4.388504439e+10 | D6: 1.054740179e+10
B7: F5 | C7: 6.505035141e+10 | D7: 2.235256447e+10
B8: Fixed | C8: 4.030249771e+10 | D8: 8280763310
B9: Floaters | C9: 1.418694852e+10 | D9: 6.921766116e+10
B10: Øv. flex | C10: 1.44752915e+10 | D10: 1.810386891e+10
A11: J Total | C11: 2.069096159e+11 | D11: 1.376228573e+11
A12: N | B12: CapFloat | C12: 1.217992515e+10 | D12: 942035426.9
B13: F1 | C13: 1.709994175e+10 | D13: 9449981537
B14: F3 | C14: 2.799799666e+10 | D14: 9988153419
B15: F5 | C15: 4.456029615e+10 | D15: 4.287173023e+10
B16: Fixed | C16: 1.21096727e+11 | D16: 8.965487224e+10
B17: Floaters | C17: 6100397494 | D17: 3.511329291e+10
B18: Øv. flex | C18: 5738233712 | D18: 8058673575
A19: N Total | C19: 2.347735179e+11 | D19: 1.960787393e+11
